bitfinex-derivatives/quotes_BTCF0:USTF0_20250926
["timestamp","ask_amount","ask_price","bid_price","bid_amount"]
[1758899479192,0.01308983,108990.0,108980.0,1.15374953]
[1758899479494,0.37388983,108990.0,108980.0,1.15374953]
[1758899480088,0.39520983,108990.0,108980.0,0.28350953]
[1758899480392,0.80832983,108990.0,108980.0,1.15338953]
[1758899480788,0.80832983,108990.0,108980.0,0.28350953]
[1758899480988,0.80832983,108990.0,108980.0,1.14051953]
[1758899481191,0.80832983,108990.0,108980.0,0.27083953]
[1758899481392,0.80832983,108990.0,108980.0,1.14051953]
[1758899481792,0.80832983,108990.0,108980.0,1.14035953]
[1758899482190,0.90002093,108990.0,108980.0,0.17914013]
[1758899482392,0.90002093,108990.0,108980.0,0.15775013]
[1758899482687,0.90002093,108990.0,108980.0,0.09176416]
[1758899483691,0.90002093,108990.0,108980.0,0.18346366]
[1758899484293,0.40832983,108990.0,108980.0,0.20485366]
[1758899485200,0.50002093,108990.0,108980.0,0.20485366]
[1758899486491,0.50002093,108990.0,108980.0,0.21752366]
[1758899486492,0.40832983,108990.0,108980.0,0.21752366]
[1758899487198,0.39520983,108990.0,108980.0,0.28350963]
[1758899488199,0.39520983,108990.0,108980.0,1.15290963]
[1758899488407,0.39520983,108990.0,108980.0,0.28350963]
[1758899488612,0.39520983,108990.0,108980.0,1.15266963]
[1758899488812,0.39520983,108990.0,108980.0,0.28350963]
[1758899489112,0.39520983,108990.0,108980.0,1.15270963]
[1758899489507,0.39520983,108990.0,108980.0,0.28350963]
[1758899489711,0.39520983,108990.0,108980.0,1.08680366]
[1758899492515,0.37388983,108990.0,108980.0,1.40489227]
[1758899492914,0.37388983,108990.0,108980.0,1.80489227]
[1758899495018,0.37388983,108990.0,108980.0,0.93561227]
[1758899495217,0.39571983,108990.0,108980.0,1.01775687]
[1758899495410,0.50088083,108990.0,108980.0,1.15455816]
[1758899495718,0.50088083,108990.0,108980.0,0.19529876]
[1758899496021,0.90088083,108990.0,108980.0,0.11315416]
[1758899496219,0.90088083,108990.0,108980.0,1.04655232]
[1758899496720,0.90088083,108990.0,108980.0,0.27077172]
[1758899496916,0.90088083,108990.0,108980.0,0.17907232]
[1758899497220,1.21896944,108990.0,108980.0,0.15768232]
[1758899497921,0.90088083,108990.0,108980.0,0.15768232]
[1758899498422,0.90088083,108990.0,108980.0,0.24938172]
[1758899498923,0.90088083,108990.0,108980.0,0.15768232]
[1758899499423,0.50088083,108990.0,108980.0,0.24938172]
[1758899499719,0.50088083,108990.0,108980.0,0.15768232]
[1758899500121,0.90088083,108990.0,108980.0,0.15768232]
[1758899500426,0.50088083,108990.0,108980.0,0.15768232]
[1758899500819,0.50088083,108990.0,108980.0,0.24938172]
[1758899501925,0.50088083,108990.0,108980.0,0.15768232]
[1758899502121,0.90088083,108990.0,108980.0,0.06591816]
[1758899502820,0.1269994,108980.0,108970.0,0.17881016]
[1758899503021,0.4877994,108980.0,108970.0,0.17881016]
[1758899503223,0.49587527,108980.0,108970.0,0.2493759]
[1758899503715,0.49587527,108980.0,108970.0,0.1576739]
[1758899503918,0.89587527,108980.0,108970.0,0.1576739]
[1758899504126,0.89587527,108980.0,108970.0,0.06591816]
[1758899504317,0.1270078,108970.0,108960.0,0.06599033]
[1758899504511,0.4878078,108970.0,108960.0,0.06599033]
[1758899504722,0.4878078,108970.0,108960.0,0.15775449]
[1758899504928,0.4878078,108970.0,108960.0,0.06599033]
[1758899505323,0.4878078,108970.0,108960.0,7.217e-05]
[1758899505924,0.4868078,108970.0,108960.0,7.217e-05]
[1758899506521,0.4868078,108970.0,108960.0,0.00707217]
[1758899506921,0.4888078,108970.0,108960.0,0.00707217]
[1758899507522,0.4888078,108970.0,108960.0,0.00507217]
[1758899507727,1.7560478,108970.0,108960.0,0.00507217]
[1758899507920,1.7560078,108970.0,108960.0,0.00507217]
[1758899508317,1.7560478,108970.0,108960.0,0.00507217]
[1758899510530,2.08203567,108970.0,108960.0,0.00507217]
[1758899510829,1.7560478,108970.0,108960.0,0.00507217]
[1758899511419,0.8888078,108970.0,108960.0,0.09678837]
[1758899511822,1.7560478,108970.0,108960.0,0.09678837]
[1758899512232,0.8888078,108970.0,108960.0,0.09678837]
[1758899512525,0.3628,108970.0,108960.0,0.13134837]
[1758899512731,0.3608,109000.0,108980.0,0.1262594]
[1758899512921,0.3608,109010.0,109000.0,0.1262425]
[1758899512924,0.02183,109010.0,109000.0,0.1262425]
[1758899513228,0.38263,109010.0,109000.0,0.1262425]
[1758899513432,0.0353,109010.0,109000.0,0.20464508]
[1758899513625,0.3961,109010.0,109000.0,0.18345518]
[1758899514130,0.4877742,109010.0,109000.0,0.20464518]
[1758899514321,0.5047742,109010.0,109000.0,0.09177258]
[1758899514520,0.4131,109010.0,109000.0,0.18345518]
[1758899514919,0.4131,109010.0,109000.0,0.20464518]
[1758899516032,0.4131,109010.0,109000.0,0.18345518]
[1758899516526,0.4041,109010.0,109000.0,0.18445518]
[1758899516732,0.4331,109010.0,109000.0,0.20564518]
[1758899517631,1.30026,109010.0,109000.0,0.20564518]
[1758899518033,0.4331,109010.0,109000.0,0.20564518]
[1758899520626,0.41963,109010.0,109000.0,0.21901518]
[1758899521133,0.41963,109010.0,109000.0,0.61901518]
[1758899521525,0.3978,109010.0,109000.0,0.58445518]
[1758899523633,0.3978,109010.0,109000.0,0.65673491]
[1758899524829,0.037,109010.0,109000.0,0.65673491]
[1758899527133,0.3978,109010.0,109000.0,0.65673491]
[1758899527432,0.3978,109010.0,109000.0,0.18445518]
[1758899527737,0.3978,109010.0,109000.0,0.09277258]
[1758899527931,0.3978,109010.0,109000.0,0.001]
[1758899527932,2.08250197,109010.0,109000.0,0.001]
[1758899528335,0.0916875,109000.0,108980.0,0.0916985]
[1758899528637,0.3608,108990.0,108980.0,0.18343741]
[1758899530733,0.3658,108990.0,108980.0,0.18343741]
[1758899531438,0.3828,108990.0,108980.0,0.18343741]
[1758899531839,0.3828,108990.0,108980.0,0.58343741]
[1758899533227,0.474491,108990.0,108980.0,0.09173891]
[1758899533843,0.3828,108990.0,108980.0,0.18343831]
[1758899535042,0.474491,108990.0,108980.0,0.09173891]
[1758899535337,0.874491,108990.0,108980.0,0.09173891]
[1758899535538,0.7828,108990.0,108980.0,0.09173891]
[1758899535737,0.874491,108990.0,108980.0,0.09173891]
[1758899535937,2.46029683,108990.0,108980.0,0.09173891]
[1758899536236,0.0917008,108980.0,108960.0,0.23136525]
[1758899536441,0.3608,108980.0,108970.0,0.0917082]
[1758899537142,0.3608,108980.0,108970.0,0.18347657]
[1758899537637,0.3628,108980.0,108970.0,0.18347657]
[1758899538936,0.002,108980.0,108970.0,0.18347657]
[1758899539731,0.004,108980.0,108970.0,0.19138525]
[1758899539931,0.004,108980.0,108970.0,0.25730341]
[1758899541133,0.004,108980.0,108970.0,1.01526924]
[1758899542137,0.004,108980.0,108970.0,1.37606924]
[1758899542340,0.004,108980.0,108970.0,1.81962525]
[1758899542735,0.004,108980.0,108970.0,0.95218525]
[1758899543039,0.004,108980.0,108970.0,1.81966525]
[1758899543435,0.004,108980.0,108970.0,0.95218525]
[1758899543630,0.004,108980.0,108970.0,1.81958525]
[1758899544942,0.004,108980.0,108970.0,1.81942525]
[1758899545742,0.004,108980.0,108970.0,1.81934525]
[1758899546343,0.004,108980.0,108970.0,0.95218525]
[1758899546549,0.004,108980.0,108970.0,1.81926525]
[1758899546847,0.004,108980.0,108970.0,0.95218525]
[1758899547043,0.004,108980.0,108970.0,1.81926525]
[1758899547239,0.004,108980.0,108970.0,0.95218525]
[1758899547535,0.004,108980.0,108970.0,0.24935189]
[1758899548046,0.3648,108980.0,108970.0,0.24935189]
[1758899549948,1.21446563,108980.0,108970.0,0.15764369]
[1758899550242,0.0917082,108970.0,108960.0,7.217e-05]
[1758899550444,0.3608,108970.0,108960.0,7.217e-05]
[1758899550639,0.4525082,108970.0,108960.0,0.09183633]
[1758899551243,0.3608,108970.0,108960.0,0.18355293]
[1758899551542,0.4525082,108970.0,108960.0,0.18355293]
[1758899552945,0.4545082,108970.0,108960.0,0.18355293]
[1758899553345,0.4545082,108970.0,108960.0,0.09183633]
[1758899554747,1.21247403,108970.0,108960.0,0.09183633]
[1758899555132,0.8683082,108970.0,108960.0,0.09183633]
[1758899555341,0.8683082,108970.0,108960.0,0.18355293]
[1758899556048,1.7354682,108970.0,108960.0,0.18355293]
[1758899556847,0.8683082,108970.0,108960.0,0.18355293]
[1758899557049,1.7354682,108970.0,108960.0,0.18355293]
[1758899557349,0.8683082,108970.0,108960.0,0.18355293]
[1758899557546,0.3766,108970.0,108960.0,0.18355293]
[1758899557848,1.24376,108970.0,108960.0,0.18355293]
[1758899558150,0.4683082,108970.0,108960.0,0.18355293]
[1758899558351,0.3766,108970.0,108960.0,0.18355293]
[1758899558544,0.3628,108970.0,108960.0,0.19710293]
[1758899559446,0.4683082,108970.0,108960.0,0.18355293]
[1758899560247,0.3766,108970.0,108960.0,0.18355293]
[1758899561050,0.4683082,108970.0,108960.0,0.18355293]
[1758899561845,0.3766,108970.0,108960.0,0.18355293]
[1758899562045,0.4683082,108970.0,108960.0,0.18355293]
[1758899562252,0.3766,108970.0,108960.0,0.18355293]
[1758899562644,0.3628,108970.0,108960.0,0.19710293]
[1758899563052,0.3766,108970.0,108960.0,0.19710293]
[1758899563253,0.4683082,108970.0,108960.0,0.18355293]
[1758899563644,0.3766,108970.0,108960.0,0.18355293]
[1758899564648,0.4683082,108970.0,108960.0,0.18355293]
[1758899566553,0.75482322,108970.0,108960.0,0.18355293]
[1758899566854,0.4683082,108970.0,108960.0,0.18355293]
[1758899567059,0.75482322,108970.0,108960.0,0.18355293]
[1758899567460,0.66311502,108970.0,108960.0,0.18355293]
[1758899567954,0.66311502,108970.0,108960.0,0.47006795]
[1758899568260,0.4683082,108970.0,108960.0,0.47006795]
[1758899569264,0.75482322,108970.0,108960.0,0.47006795]
[1758899569452,0.75482322,108970.0,108960.0,0.18355293]
[1758899570764,0.3766,108970.0,108960.0,0.47006795]
[1758899571558,0.4683082,108970.0,108960.0,0.47006795]
[1758899572165,0.3766,108970.0,108960.0,0.47006795]
[1758899572666,0.4683082,108970.0,108960.0,0.18355293]
[1758899572855,0.3766,108970.0,108960.0,0.47006795]
[1758899573164,0.4683082,108970.0,108960.0,0.47006795]
[1758899573564,0.3766,108970.0,108960.0,0.47006795]
[1758899574063,0.4683082,108970.0,108960.0,0.47006795]
[1758899574261,0.3766,108970.0,108960.0,0.47006795]
[1758899574954,0.3628,108970.0,108960.0,0.48361795]
[1758899575362,0.3628,108970.0,108960.0,0.19710293]
[1758899575558,0.3766,108970.0,108960.0,0.48361795]
[1758899577764,0.3628,108970.0,108960.0,0.48361795]
[1758899578367,0.3767,108970.0,108960.0,0.48361795]
[1758899578562,0.3628,108970.0,108960.0,0.48361795]
[1758899578864,0.3628,108970.0,108960.0,0.54950022]
[1758899579460,0.3628,108970.0,108960.0,1.23601524]
[1758899579655,0.002,108970.0,108960.0,1.53093297]
[1758899581165,0.002,108970.0,108960.0,1.61307757]
[1758899581369,0.002,108970.0,108960.0,1.53093297]
[1758899581871,0.3608,108990.0,108980.0,0.1048098]
[1758899582168,0.3608,109000.0,108990.0,0.0916914]
[1758899582467,0.466383,109000.0,108990.0,0.28651502]
[1758899582665,0.0139,108990.0,108980.0,0.26258421]
[1758899582862,0.3747,108990.0,108980.0,1.32456665]
[1758899583063,0.3797,108990.0,108980.0,1.41731397]
[1758899583260,0.3797,108990.0,108980.0,0.55007397]
[1758899583662,0.3797,108990.0,108980.0,1.11768895]
[1758899583867,0.66621502,108990.0,108980.0,1.11768895]
[1758899584066,0.3797,108990.0,108980.0,1.40420397]
[1758899584265,0.3797,108990.0,108980.0,0.53696397]
[1758899584765,0.3797,108990.0,108980.0,0.44526957]
[1758899584766,0.4713914,108990.0,108980.0,0.44526957]
[1758899585071,0.75790642,108990.0,108980.0,0.15875455]
[1758899585772,1.15790642,108990.0,108980.0,0.25045435]
[1758899585972,0.8713914,108990.0,108980.0,0.25045435]
[1758899586172,0.7797,108990.0,108980.0,0.25045435]
[1758899586476,0.7797,108990.0,108980.0,0.53696937]
[1758899587271,0.7797,108990.0,108980.0,0.55018937]
[1758899587468,0.8713914,108990.0,108980.0,0.53696937]
[1758899589074,0.8713914,108990.0,108980.0,0.47096214]
[1758899590163,1.15790642,108990.0,108980.0,0.18444712]
[1758899590771,1.15790642,108990.0,108980.0,0.47096214]
[1758899590975,0.8713914,108990.0,108980.0,0.47096214]
[1758899591976,0.7797,108990.0,108980.0,0.47096214]
[1758899592272,0.8713914,108990.0,108980.0,0.47096214]
[1758899592866,0.8713914,108990.0,108980.0,0.18444712]
[1758899593071,0.8713914,108990.0,108980.0,0.09274732]
[1758899593072,1.15790642,108990.0,108980.0,0.09274732]
[1758899593978,1.15790642,108990.0,108980.0,0.47096214]
[1758899594278,1.7384714,108990.0,108980.0,0.47096214]
[1758899594578,0.8713914,108990.0,108980.0,0.47096214]
[1758899594976,1.7384714,108990.0,108980.0,0.47096214]
[1758899595280,1.7384714,108990.0,108980.0,0.25045435]
[1758899595477,2.02498642,108990.0,108980.0,0.09274732]
[1758899595676,0.8713914,108990.0,108980.0,0.18444702]
[1758899595877,2.02498642,108990.0,108980.0,0.18444702]
[1758899596379,1.62498642,108990.0,108980.0,0.18444702]
[1758899596680,1.3384714,108990.0,108980.0,0.18444702]
[1758899597468,0.4713914,108990.0,108980.0,0.18444702]
[1758899597674,1.3384314,108990.0,108980.0,0.18444702]
[1758899598889,0.4713914,108990.0,108980.0,0.18444702]
[1758899599075,1.3384314,108990.0,108980.0,0.18444702]
[1758899600382,0.4713914,108990.0,108980.0,0.18444702]
[1758899600580,1.3384314,108990.0,108980.0,0.18444702]
[1758899603285,1.3384314,108990.0,108980.0,0.20566702]
[1758899603286,1.3605414,108990.0,108980.0,0.20566702]
[1758899603986,1.3605014,108990.0,108980.0,0.20566702]
[1758899605689,1.3605014,108990.0,108980.0,0.18444702]
[1758899606480,1.3605014,108990.0,108980.0,0.20566702]
[1758899607388,0.40181,108990.0,108980.0,0.20566702]
[1758899607589,1.3604613,108990.0,108980.0,0.20566702]
[1758899608494,1.3604613,108990.0,108980.0,0.27167425]
[1758899609681,1.3604613,108990.0,108980.0,0.25045425]
[1758899610180,1.3604613,108990.0,108980.0,0.27147425]
[1758899610583,1.3604613,108990.0,108980.0,0.28436425]
[1758899610783,1.3604613,108990.0,108980.0,0.27147425]
[1758899612086,0.4935013,108990.0,108980.0,0.27147425]
[1758899612287,1.3604213,108990.0,108980.0,0.60259549]
[1758899613093,1.3603813,108990.0,108980.0,0.60259549]
[1758899613591,1.3603413,108990.0,108980.0,0.60259549]
[1758899614795,0.3658,108990.0,108980.0,1.00259549]
[1758899614988,0.005,108990.0,108980.0,1.0190973]
[1758899615388,0.01857,108990.0,108980.0,1.8730473]
[1758899615691,0.01857,108990.0,108980.0,1.0062073]
[1758899615992,0.005,108990.0,108980.0,1.0190973]
[1758899616790,0.005,108990.0,108980.0,1.8858973]
[1758899616987,0.005,108990.0,108980.0,1.0190973]
[1758899617195,0.40141,108990.0,108980.0,1.0062073]
[1758899617392,0.40141,108990.0,108980.0,1.79049826]
[1758899617586,0.40141,108990.0,108980.0,1.80338826]
[1758899617781,0.4931013,108990.0,108980.0,0.93658826]
[1758899617989,0.4931013,108990.0,108980.0,0.20546702]
[1758899618293,0.40141,108990.0,108980.0,0.52369826]
[1758899619292,0.38784,108990.0,108980.0,0.53658826]
[1758899620395,0.40141,108990.0,108980.0,0.53658826]
[1758899622388,0.4931014,108990.0,108980.0,0.53658826]
[1758899622689,0.4931014,108990.0,108980.0,0.11376732]
[1758899623198,0.4931014,108990.0,108980.0,0.09274732]
[1758899623386,0.4931014,108990.0,108980.0,0.15873063]
[1758899623693,1.21133264,108990.0,108980.0,0.06698331]
[1758899623887,1.21133264,108990.0,108980.0,0.001]
[1758899624387,0.8931014,108990.0,108980.0,0.02202]
[1758899624581,0.8931014,108990.0,108980.0,0.1137198]
[1758899624997,1.7597414,108990.0,108980.0,0.1137198]
[1758899625189,0.8931014,108990.0,108980.0,0.1137198]
[1758899625389,1.7597414,108990.0,108980.0,0.1137198]
[1758899626290,1.7597414,108990.0,108980.0,0.0926998]
[1758899628096,1.7597414,108990.0,108980.0,0.001]
[1758899628397,1.7597414,108990.0,108980.0,0.0926998]
[1758899628591,1.7597414,108990.0,108980.0,0.1137198]
[1758899628592,0.8931014,108990.0,108980.0,0.1137198]
[1758899629098,1.7597014,108990.0,108980.0,0.1137198]
[1758899630390,0.4931014,108990.0,108980.0,0.52370678]
[1758899630590,1.3597014,108990.0,108980.0,0.11377574]
[1758899630791,1.3597014,108990.0,108980.0,0.001]
[1758899632299,1.67793264,108990.0,108980.0,0.001]
[1758899632598,1.67793264,108990.0,108980.0,0.0926997]
[1758899632993,1.3597014,108990.0,108980.0,0.0926997]
[1758899633186,1.3597014,108990.0,108980.0,0.001]
[1758899633390,1.3597014,108990.0,108980.0,0.0926997]
[1758899637602,0.4931014,108990.0,108980.0,0.0926997]
[1758899637801,1.3595814,108990.0,108980.0,0.1137197]
[1758899638496,0.4931014,108990.0,108980.0,0.1137197]
[1758899638699,1.3595814,108990.0,108980.0,0.1137197]
[1758899638899,0.4931014,108990.0,108980.0,0.53648668]
[1758899639097,1.26785,108990.0,108980.0,0.53648668]
[1758899639401,1.3595414,108990.0,108980.0,0.52370668]
[1758899639801,1.3595414,108990.0,108980.0,0.20547544]
[1758899641599,1.3595414,108990.0,108980.0,0.52370668]
[1758899641801,1.26785,108990.0,108980.0,0.52370668]
[1758899642599,1.3595413,108990.0,108980.0,0.52370668]
[1758899643305,1.3595413,108990.0,108980.0,0.18445544]
[1758899643506,0.40141,108990.0,108980.0,0.20579544]
[1758899643700,1.3594613,108990.0,108980.0,0.20579544]
[1758899644400,1.3594613,108990.0,108980.0,0.52402668]
[1758899645306,1.3594613,108990.0,108980.0,0.20579544]
[1758899645505,1.3594613,108990.0,108980.0,0.18445544]
[1758899645902,1.3594613,108990.0,108980.0,0.20750544]
[1758899646493,1.3594613,108990.0,108980.0,0.09275574]
[1758899646699,1.67769254,108990.0,108980.0,0.18445554]
[1758899646911,1.67769254,108990.0,108980.0,0.0926998]
[1758899647114,1.3594613,108990.0,108980.0,0.0926998]
[1758899649600,1.3594613,108990.0,108980.0,0.001]
[1758899649908,1.3594613,108990.0,108980.0,0.0926998]
[1758899650915,0.4931013,108990.0,108980.0,0.0926998]
[1758899651105,1.3593013,108990.0,108980.0,0.0926998]
[1758899651511,0.4931013,108990.0,108980.0,0.0926998]
[1758899651903,1.3592613,108990.0,108980.0,0.0926998]
[1758899652306,0.4931013,108990.0,108980.0,0.0926998]
[1758899652812,1.3592613,108990.0,108980.0,0.0926998]
[1758899653013,1.3592213,108990.0,108980.0,0.1157498]
[1758899653902,0.4931013,108990.0,108980.0,0.1157498]
[1758899654107,1.3592213,108990.0,108980.0,0.1157498]
[1758899654814,0.4931013,108990.0,108980.0,0.1157498]
[1758899655013,1.3592213,108990.0,108980.0,0.1157498]
[1758899655217,1.3592213,108990.0,108980.0,0.0926998]
[1758899655510,0.4931013,108990.0,108980.0,0.0926998]
[1758899655715,1.3591813,108990.0,108980.0,0.1157498]
[1758899656418,0.4931013,108990.0,108980.0,0.1157498]
[1758899656606,1.3591813,108990.0,108980.0,0.1157498]
[1758899657417,0.4931013,108990.0,108980.0,0.1157498]
[1758899657612,1.3591413,108990.0,108980.0,0.1157498]
[1758899658312,1.3591413,108990.0,108980.0,0.0926998]
[1758899658705,1.64555262,108990.0,108980.0,0.37911112]
[1758899659217,0.77951262,108990.0,108980.0,0.37911112]
[1758899659416,1.64551262,108990.0,108980.0,0.37911112]
[1758899659819,1.64551262,108990.0,108980.0,0.28741132]
[1758899660014,1.64551262,108990.0,108980.0,0.001]
[1758899660213,1.08474765,108990.0,108980.0,0.001]
[1758899660519,2.35070765,108990.0,108980.0,0.001]
[1758899661312,2.06429633,108990.0,108980.0,0.001]
[1758899662220,0.1272782,108970.0,108960.0,0.06605548]
[1758899662518,2.00120952,108970.0,108960.0,0.06605548]
[1758899662719,2.00120952,108970.0,108960.0,0.09182791]
[1758899662920,2.00120952,108970.0,108960.0,7.217e-05]
[1758899664722,2.00971921,108970.0,108960.0,7.217e-05]
[1758899665425,2.01171921,108970.0,108960.0,7.217e-05]
[1758899665727,1.72526789,108970.0,108960.0,0.40125009]
[1758899665919,0.8508782,108970.0,108960.0,0.40125009]
[1758899666312,1.7147582,108970.0,108960.0,0.40125009]
[1758899666619,1.7217182,108970.0,108960.0,0.40225009]
[1758899667523,0.8558782,108970.0,108960.0,0.40225009]
[1758899667724,1.7217582,108970.0,108960.0,0.40225009]
[1758899667920,1.7217182,108970.0,108960.0,0.40225009]
[1758899668218,0.8558782,108970.0,108960.0,0.40225009]
[1758899668822,1.7216782,108970.0,108960.0,0.40225009]
[1758899675223,1.7216782,108970.0,108960.0,0.11583877]
[1758899675529,2.00808952,108970.0,108960.0,0.02412217]
[1758899675827,2.00808952,108970.0,108960.0,0.00107217]
[1758899676032,2.00808952,108970.0,108960.0,0.02318217]
[1758899676622,2.00808952,108970.0,108960.0,0.11489867]
[1758899677321,1.7216782,108970.0,108960.0,0.40130999]
[1758899677632,1.7215182,108970.0,108960.0,0.49308257]
[1758899678529,1.7215182,108970.0,108960.0,0.40136607]
[1758899678825,2.00792952,108970.0,108960.0,0.40136607]
[1758899679828,2.00792952,108970.0,108960.0,0.49308267]
[1758899680216,2.00792952,108970.0,108960.0,0.37925607]
[1758899680421,2.00792952,108970.0,108960.0,0.00107217]
[1758899681223,2.40780952,108970.0,108960.0,0.02318217]
[1758899681725,1.7213582,108970.0,108960.0,0.30959349]
[1758899682532,0.8558782,108970.0,108960.0,0.30959349]
[1758899682734,1.7213182,108970.0,108960.0,0.49308267]
[1758899683327,0.8558782,108970.0,108960.0,0.49308267]
[1758899683539,0.76417,108970.0,108960.0,0.49308267]
[1758899683732,0.3678,108970.0,108960.0,1.2583873]
[1758899684425,0.007,108970.0,108960.0,1.2583873]
[1758899686128,0.007,108970.0,108960.0,1.19240399]
[1758899686336,0.007,108970.0,108960.0,2.05772399]
[1758899687731,0.007,108970.0,108960.0,2.05764399]
[1758899688729,0.38203,108980.0,108970.0,0.1267282]
[1758899688926,0.38203,108980.0,108970.0,0.47904763]
[1758899689126,0.38203,108980.0,108970.0,1.34428763]
[1758899689326,0.38203,108980.0,108970.0,0.57081179]
[1758899689522,0.4737298,108980.0,108970.0,0.57081179]
[1758899689833,0.4874898,108980.0,108970.0,1.43597179]
[1758899690033,0.38503,108980.0,108970.0,1.43597179]
[1758899690643,0.38503,108980.0,108970.0,0.57081179]
[1758899692439,0.38503,108980.0,108970.0,1.14944047]
[1758899692634,0.4767297,108980.0,108970.0,0.57081179]
[1758899692939,0.4904897,108980.0,108970.0,0.57081179]
[1758899693439,0.4904897,108980.0,108970.0,0.55790179]
[1758899698633,0.4904897,108980.0,108970.0,0.46619359]
[1758899698833,0.4904897,108980.0,108970.0,0.55790169]
[1758899699940,0.4904897,108980.0,108970.0,0.27149037]
[1758899700136,0.4904897,108980.0,108970.0,0.46619359]
[1758899700331,0.4904897,108980.0,108960.0,0.15769568]
[1758899700332,0.1272182,108970.0,108960.0,0.15769568]
[1758899700538,0.77442952,108970.0,108960.0,0.06598028]
[1758899700836,1.63910952,108970.0,108960.0,0.18034444]
[1758899701031,1.63910952,108970.0,108960.0,0.55847226]
[1758899701428,1.63910952,108970.0,108960.0,0.24946094]
[1758899701631,1.63910952,108970.0,108960.0,0.18355283]
[1758899702041,0.77442952,108970.0,108960.0,0.18355283]
[1758899702232,1.64002952,108970.0,108960.0,0.20615283]
[1758899702435,0.4890182,108970.0,108960.0,0.49256415]
[1758899702635,1.64002952,108970.0,108960.0,0.49256415]
[1758899702842,0.77542952,108970.0,108960.0,0.49256415]
[1758899703043,1.64002952,108970.0,108960.0,0.09183633]
[1758899703239,1.64302952,108970.0,108960.0,0.09183633]
[1758899703437,0.77842952,108970.0,108960.0,0.20615283]
[1758899703634,1.64298952,108970.0,108960.0,0.20615283]
[1758899703836,1.3565782,108970.0,108960.0,0.20615283]
[1758899704038,0.77842952,108970.0,108960.0,0.49256415]
[1758899704240,1.64298952,108970.0,108960.0,0.49256415]
[1758899704439,1.64298952,108970.0,108960.0,0.46996415]
[1758899704948,1.64294952,108970.0,108960.0,0.40084765]
[1758899705143,1.64294952,108970.0,108960.0,0.09183633]
[1758899705645,1.64294952,108970.0,108960.0,0.40084765]
[1758899705646,1.3565382,108970.0,108960.0,0.40084765]
[1758899705840,1.64294952,108970.0,108960.0,0.40084765]
[1758899706239,1.3564982,108970.0,108960.0,0.40084765]
[1758899706637,1.64290952,108970.0,108960.0,0.40084765]
[1758899707036,2.04290952,108970.0,108960.0,7.217e-05]
[1758899707435,0.1046648,108950.0,108940.0,1.86086698]
[1758899707642,0.75187612,108950.0,108940.0,1.95260028]
[1758899707842,0.75187612,108950.0,108940.0,2.04437286]
[1758899708046,1.11267612,108950.0,108940.0,1.95263956]
[1758899708244,1.97707612,108950.0,108940.0,1.66622824]
[1758899708641,1.97707612,108950.0,108940.0,1.65768069]
[1758899708847,0.1268033,108940.0,108930.0,0.08812811]
[1758899709041,0.77401462,108940.0,108930.0,0.08812811]
[1758899709342,0.4876033,108940.0,108930.0,0.55807056]
[1758899709546,1.3519633,108940.0,108930.0,0.55807056]
[1758899710446,0.4876033,108940.0,108930.0,0.55807056]
[1758899710642,1.3519633,108940.0,108930.0,0.55807056]
[1758899710947,1.3519233,108940.0,108930.0,0.55807056]
[1758899711143,0.4876033,108940.0,108930.0,0.55807056]
[1758899711341,1.3519233,108940.0,108930.0,0.57098056]
[1758899711646,1.3519233,108940.0,108930.0,0.27165924]
[1758899711842,0.4876033,108940.0,108930.0,0.17991754]
[1758899712044,0.1046815,108930.0,108920.0,1.86102016]
[1758899712249,0.75189282,108930.0,108920.0,1.86102016]
[1758899712541,0.4654815,108930.0,108920.0,1.95281802]
[1758899712744,0.4654815,108930.0,108920.0,1.97865981]
[1758899712944,0.4654815,108930.0,108920.0,1.69224849]
[1758899713144,0.4684815,108930.0,108920.0,1.97865981]
[1758899713538,0.4684815,108930.0,108920.0,1.60049859]
[1758899713737,0.4684815,108930.0,108920.0,1.88690991]
[1758899714143,0.4684815,108930.0,108920.0,1.97865981]
[1758899715444,0.4684815,108930.0,108920.0,1.99156981]
[1758899716045,0.4684815,108930.0,108920.0,1.97865981]
[1758899716345,0.4684815,108930.0,108920.0,1.88690991]
[1758899716542,0.77702282,108930.0,108920.0,0.09179786]
[1758899716938,0.4906115,108930.0,108920.0,0.37820918]
[1758899717342,0.4906115,108930.0,108920.0,0.10017278]
[1758899717544,0.4906115,108930.0,108920.0,0.478334]
[1758899717941,0.4906115,108930.0,108920.0,0.46995908]
[1758899718142,1.17702282,108930.0,108920.0,0.09179786]
[1758899718351,0.1046899,108920.0,108910.0,1.88661498]
[1758899718546,0.37374,108920.0,108910.0,1.88661498]
[1758899718748,0.4654899,108920.0,108910.0,1.69200994]
[1758899719846,0.37474,108920.0,108910.0,2.0106072]
[1758899720153,0.3618,108920.0,108910.0,2.4235172]
[1758899721951,0.3618,108920.0,108910.0,2.10491994]
[1758899722140,0.3618,108920.0,108910.0,2.4235172]
[1758899723451,0.3618,108920.0,108910.0,3.2876772]
[1758899723754,0.3618,108920.0,108910.0,2.4235172]
[1758899723952,0.3618,108920.0,108910.0,3.2876372]
[1758899724956,0.001,108920.0,108910.0,3.2876372]
[1758899725550,0.001,108920.0,108910.0,3.6484372]
[1758899726053,0.3608,108950.0,108940.0,0.091733]
[1758899726258,0.38293,108950.0,108940.0,0.44546026]
[1758899726655,0.02213,108950.0,108940.0,0.93727497]
[1758899726962,0.38194,108960.0,108950.0,0.1278646]
[1758899727148,0.38194,108960.0,108950.0,0.44646186]
[1758899727452,0.45586087,108970.0,108960.0,0.1278562]
[1758899727648,0.38194,108970.0,108960.0,0.44645346]
[1758899727845,0.4865278,108970.0,108960.0,0.03614]
[1758899728050,0.03402,108960.0,108950.0,0.903789]
[1758899728252,0.39482,108960.0,108950.0,1.22238626]
[1758899728562,0.39482,108960.0,108950.0,1.40223444]
[1758899728750,0.4865363,108960.0,108950.0,1.40219444]
[1758899728951,0.4865363,108960.0,108950.0,1.08359718]
[1758899729151,0.4935363,108960.0,108950.0,1.07148728]
[1758899729553,0.4935363,108960.0,108950.0,0.20752728]
[1758899729759,0.4935363,108960.0,108950.0,1.07144728]
[1758899729958,0.40182,108960.0,108950.0,1.07144728]
[1758899730159,0.39682,108960.0,108950.0,1.08355728]
[1758899730558,0.39682,108960.0,108950.0,0.53823454]
[1758899730859,0.38394,108960.0,108950.0,0.93823454]
[1758899731463,0.38394,108960.0,108950.0,1.80207454]
[1758899731657,0.38394,108960.0,108950.0,0.53823454]
[1758899732161,0.38394,108960.0,108950.0,1.40207454]
[1758899733261,0.38394,108960.0,108950.0,0.53823454]
[1758899733463,0.38394,108960.0,108950.0,1.40203454]
[1758899734054,0.3628,108960.0,108950.0,1.40203454]
[1758899734858,0.3628,108960.0,108950.0,1.80203454]
[1758899736057,0.002,108960.0,108950.0,1.80203454]
[1758899736656,0.002,108960.0,108950.0,2.16283454]
[1758899736858,0.002,108960.0,108950.0,2.4814318]